fUST/lending_fUST_20250614
["ID","MTS","AMOUNT","RATE_DAILY","PERIOD"]
[365749774,1749876635079,-460.0,0.00021642,4]
[365749775,1749876635088,-460.0,0.00021642,4]
[365749776,1749876635097,-300.0,0.00021642,4]
[365749777,1749876635106,-460.0,0.00021642,4]
[365749778,1749876635116,-400.0,0.00021642,4]
[365749779,1749876635126,-205.61300003,0.00021642,4]
[365749780,1749876635135,-437.67835116,0.00021662,2]
[365749781,1749876635144,-505.90908521,0.00021667,2]
[365749782,1749876635154,-511.9478752,0.00021667,2]
[365749783,1749876635163,-500.0,0.00021673,2]
[365749784,1749876635176,-500.0,0.00021683,2]
[365749785,1749876635186,-258.69340183,0.00021683,2]
[365749786,1749876635195,-505.99461232,0.00021683,2]
[365749787,1749876635204,-509.97005509,0.00021714,2]
[365749788,1749876635215,-505.14160994,0.00021721,2]
[365749789,1749876635225,-165.11664417,0.0002177,2]
[365749790,1749876635234,-500.0,0.00021883,2]
[365749791,1749876635244,-460.0,0.00021891,4]
[365749792,1749876635255,-2694.91,0.00021891,4]
[365749793,1749876635266,-460.0,0.00021891,4]
[365749794,1749876635275,-460.0,0.00021891,4]
[365749795,1749876635284,-460.0,0.00021891,4]
[365749796,1749876635295,-490.1,0.00021891,4]
[365749797,1749876635304,-488.27,0.00021891,4]
[365749798,1749876635314,-460.0,0.00021891,4]
[365749799,1749876635324,-460.0,0.00021891,4]
[365749800,1749876635334,-460.0,0.00021891,4]
[365749801,1749876635343,-460.0,0.00021891,4]
[365749802,1749876635352,-460.0,0.00021891,4]
[365749803,1749876635362,-440.0,0.00021891,4]
[365749804,1749876635372,-460.0,0.00021892,4]
[365749805,1749876635382,-342.92841856,0.00021892,4]
[365749806,1749876635392,-291.70460531,0.00021892,4]
[365749807,1749876635401,-460.0,0.00021892,4]
[365749808,1749876635411,-190.38,0.00021892,4]
[365749809,1749876635422,-460.0,0.00021892,4]
[365749810,1749876635431,-593.95,0.00021892,4]
[365749811,1749876635443,-460.0,0.00021892,4]
[365749812,1749876635452,-300.03,0.00021892,4]
[365749813,1749876635462,-460.0,0.00021892,4]
[365749814,1749876635471,-460.0,0.00021892,4]
[365749815,1749876635481,-460.0,0.00021892,4]
[365749816,1749876635491,-460.0,0.00021892,4]
[365749817,1749876635500,-460.0,0.00021892,4]
[365749818,1749876635510,-460.0,0.00021892,4]
[365749819,1749876635520,-460.0,0.00021892,4]
[365749820,1749876635530,-460.0,0.00021892,4]
[365749821,1749876635539,-460.0,0.00021892,4]
[365749822,1749876635549,-565.85,0.00021892,4]
[365749823,1749876635558,-460.0,0.00021892,4]
[365749824,1749876635567,-559.09,0.00021892,4]
[365749825,1749876635577,-1847.67110465,0.000219,6]
[365749826,1749876635586,-400.0,0.00021904,4]
[365749827,1749876635596,-460.0,0.00021904,4]
[365749828,1749876635606,-350.0,0.00021904,4]
[365749829,1749876635615,-198.66375595,0.00021904,4]
[365749830,1749876635630,-460.0,0.00021904,4]
[365749831,1749876635640,-339.61450717,0.00021904,4]
[365749832,1749876635649,-460.0,0.00021904,4]
[365749833,1749876635659,-416.70027913,0.00021904,4]
[365749834,1749876635668,-460.0,0.00021904,4]
[365749835,1749876635677,-460.0,0.00021904,2]
[365749836,1749876635687,-507.58503409,0.00021915,3]
[365749837,1749876635697,-460.0,0.00021916,4]
[365749838,1749876635708,-460.0,0.00021916,4]
[365749839,1749876635718,-460.0,0.00021916,4]
[365749840,1749876635728,-460.0,0.00021916,4]
[365749841,1749876635737,-546.92009004,0.00021917,2]
[365749842,1749876635746,-5000.0,0.0002194,2]
[365749843,1749876635757,-160.0,0.00021999,2]
[365749844,1749876635766,-164.0,0.00022,2]
[365749845,1749876635776,-166.0,0.00022,2]
[365749846,1749876635785,-1847.6711044,0.00022003,6]
[365749847,1749876635795,-244.34315868,0.00022007,2]
[365749848,1749876635805,-1057.85692234,0.00022066,2]
[365749849,1749876635814,-1847.6711044,0.00022107,6]
[365749850,1749876635823,-460.0,0.00022165,4]
[365749851,1749876635833,-2694.91,0.00022165,4]
[365749852,1749876635843,-460.0,0.00022165,4]
[365749853,1749876635852,-460.0,0.00022165,4]
[365749854,1749876635861,-460.0,0.00022165,4]
[365749855,1749876635871,-490.1,0.00022165,4]
[365749856,1749876635880,-488.27,0.00022165,4]
[365749857,1749876635890,-460.0,0.00022165,4]
[365749858,1749876635995,-460.0,0.00022165,4]
[365749859,1749876636005,-183.39854976,0.00022165,4]
[365749860,1749876636014,-460.0,0.00022165,4]
[365749861,1749876636029,-460.0,0.00022166,4]
[365749862,1749876636040,-460.0,0.00022166,4]
[365749863,1749876636050,-460.0,0.00022166,4]
[365749864,1749876636059,-593.95,0.00022166,4]
[365749865,1749876636069,-460.0,0.00022166,4]
[365749866,1749876636078,-460.0,0.00022166,4]
[365749867,1749876636087,-317.97773408,0.00022166,4]
[365749868,1749876636097,-460.0,0.00022166,4]
[365749869,1749876636106,-460.0,0.00022166,4]
[365749870,1749876636115,-460.0,0.00022166,4]
[365749871,1749876636125,-460.0,0.00022166,4]
[365749872,1749876636134,-565.85,0.00022166,4]
[365749873,1749876636143,-460.0,0.00022166,4]
[365749874,1749876636152,-448.74312294,0.00022178,4]
[365749875,1749876636161,-460.0,0.00022178,4]
[365749876,1749876636173,-460.0,0.00022178,2]
[365749877,1749876636186,-424.66,0.0002219,4]
[365749878,1749876636195,-460.0,0.0002219,4]
[365749879,1749876636205,-481.96,0.0002219,4]
[365749880,1749876636215,-225.9898967,0.0002219,4]
[365749881,1749876636224,-153.0,0.00022192,2]
[365749882,1749876636233,-153.0,0.00022192,2]
[365749883,1749876636242,-153.0,0.00022192,2]
[365749884,1749876636252,-153.0,0.00022192,2]
[365749885,1749876636262,-211.11651903,0.0002221,2]
[365749886,1749876636271,-1847.6711044,0.0002221,6]
[365749887,1749876636281,-500.0,0.00022221,2]
[365749888,1749876636290,-165.11664417,0.00022284,2]
[365749889,1749876636299,-1847.6711044,0.00022314,7]
[365749890,1749876636308,-160.0,0.00022322,2]
[365749891,1749876636319,-424.40141186,0.00022337,2]
[365749892,1749876636328,-835.41710878,0.00022337,2]
[365749893,1749876636337,-229.82479369,0.00022337,2]
[365749894,1749876636346,-845.10789306,0.00022337,2]
[365749895,1749876636356,-213.28201367,0.00022337,2]
[365749896,1749876636365,-160.0,0.00022337,2]
[365749897,1749876636375,-160.0,0.00022337,2]
[365749898,1749876636384,-160.0,0.00022337,2]
[365749899,1749876636393,-160.0,0.00022337,2]
[365749900,1749876636403,-207.4,0.00022362,2]
[365749901,1749876636413,-500.0,0.00022362,2]
[365749902,1749876636423,-500.0,0.00022362,2]
[365749903,1749876636434,-1000.0,0.00022362,2]
[365749904,1749876636447,-500.0,0.00022362,2]
[365749905,1749876636457,-1000.0,0.00022362,2]
[365749906,1749876636467,-500.0,0.00022362,2]
[365749907,1749876636476,-945.89319755,0.00022362,2]
[365749908,1749876636486,-500.0,0.00022362,2]
[365749909,1749876636506,-1847.6711044,0.00022417,7]
[365749910,1749876636517,-505.36277811,0.00022431,2]
[365749911,1749876636527,-460.0,0.00022439,4]
[365749912,1749876636537,-2694.91,0.00022439,4]
[365749913,1749876636547,-460.0,0.00022439,4]
[365749914,1749876636558,-460.0,0.00022439,4]
[365749915,1749876636568,-460.0,0.00022439,4]
[365749916,1749876636578,-490.1,0.00022439,4]
[365749917,1749876636588,-488.27,0.00022439,4]
[365749918,1749876636598,-460.0,0.00022439,4]
[365749919,1749876636607,-460.0,0.00022439,4]
[365749920,1749876636617,-460.0,0.00022439,4]
[365749921,1749876636627,-536.36,0.0002244,4]
[365749922,1749876636640,-460.0,0.0002244,4]
[365749923,1749876636661,-593.95,0.0002244,4]
[365749924,1749876636674,-460.0,0.0002244,4]
[365749925,1749876636683,-460.0,0.0002244,4]
[365749926,1749876636693,-460.0,0.0002244,4]
[365749927,1749876636703,-460.0,0.0002244,4]
[365749928,1749876636714,-462.56486526,0.0002244,4]
[365749929,1749876636725,-565.85,0.0002244,4]
[365749930,1749876636735,-460.0,0.0002244,4]
[365749931,1749876636744,-460.0,0.00022452,2]
[365749932,1749876636754,-590.7819618,0.00022466,2]
[365749933,1749876636764,-1057.85692233,0.00022475,2]
[365749934,1749876636774,-163.073196,0.00022505,2]
[365749935,1749876636784,-1847.6711044,0.00022521,7]
[365749936,1749876636793,-518.0,0.00022547,2]
[365749937,1749876636803,-153.0,0.00022552,2]
[365749938,1749876636812,-1558.26738437,0.00022624,7]
[365749950,1749876638216,-5000.0,0.00021142,2]
[365749951,1749876638227,-158.95637029,0.00021343,2]
[365749952,1749876638239,-301.04362971,0.00021343,2]
[365749953,1749876638248,-594.01027538,0.00021617,2]
[365749954,1749876638257,-733.49,0.000222,3]
[365749955,1749876638268,-160.0,0.00022322,2]
[365749956,1749876638277,-289.40372003,0.00022624,7]
[365749957,1749876638287,-153.0,0.00022652,2]
[365749958,1749876638297,-168.0,0.00022698,2]
[365749959,1749876638308,-460.0,0.00022713,4]
[365749960,1749876638319,-1789.64234844,0.00022713,4]
[365749961,1749876638332,-832.24294486,0.00022713,4]
[365749962,1749876638345,-73.0247067,0.00022713,4]
[365749963,1749876638354,-460.0,0.00022713,4]
[365749964,1749876638364,-460.0,0.00022713,4]
[365749965,1749876638374,-460.0,0.00022713,4]
[365749966,1749876638384,-490.1,0.00022713,4]
[365749967,1749876638394,-488.27,0.00022713,4]
[365749968,1749876638403,-460.0,0.00022713,4]
[365749969,1749876638413,-460.0,0.00022713,4]
[365749970,1749876638423,-593.95,0.00022714,4]
[365749971,1749876638432,-460.0,0.00022714,4]
[365749972,1749876638442,-528.85,0.00022714,4]
[365749973,1749876638452,-460.0,0.00022714,4]
[365749974,1749876638461,-546.70832495,0.00022714,4]
[365749975,1749876638474,-19.14167505,0.00022714,4]
[365749976,1749876638483,-460.0,0.00022714,4]
[365749977,1749876638493,-460.0,0.00022726,2]
[365749978,1749876638502,-1814.29344818,0.00022728,7]
[365749979,1749876638516,-33.37765622,0.00022728,7]
[365749980,1749876638525,-254.32968299,0.0002274,2]
[365749981,1749876638537,-45.90152151,0.0002274,2]
[365749982,1749876638547,-518.0,0.00022756,2]
[365749983,1749876638556,-165.11664417,0.00022798,2]
[365749984,1749876638565,-609.09927526,0.00022831,8]
[365749985,1749876638577,-1238.57182914,0.00022831,8]
[365749986,1749876638587,-518.0,0.00022868,2]
[365749987,1749876638596,-612.0,0.0002288,2]
[365749988,1749876638606,-1057.85692233,0.00022883,2]
[365749989,1749876638615,-3668.06,0.00022926,2]
[365749990,1749876638625,-1847.6711044,0.00022934,8]
[365749991,1749876638636,-420.0,0.00022941,2]
[365749992,1749876638645,-573.7859869,0.00022986,2]
[365749993,1749876638654,-176.9937618,0.00022986,2]
[365749994,1749876638664,-158.8714084,0.00022986,2]
[365749995,1749876638673,-460.0,0.00022987,4]
[365749996,1749876638683,-2694.91,0.00022987,4]
[365749997,1749876638693,-460.0,0.00022987,4]
[365749998,1749876638703,-460.0,0.00022987,4]
[365749999,1749876638712,-460.0,0.00022987,4]
[365750000,1749876638721,-490.1,0.00022987,4]
[365750001,1749876638731,-488.27,0.00022987,4]
[365750002,1749876638741,-460.0,0.00022987,4]
[365750003,1749876638750,-460.0,0.00022987,4]
[365750004,1749876638760,-593.95,0.00022988,4]
[365750005,1749876638770,-394.92217172,0.00022988,4]
[365750006,1749876638779,-565.85,0.00022988,4]
[365750007,1749876638789,-5000.0,0.00022989,2]
[365750008,1749876638799,-977.94,0.0002299,3]
[365750009,1749876638808,-488.98,0.0002299,3]
[365750010,1749876638817,-13637.89578018,0.00022996,2]
[365750011,1749876638827,-460.0,0.00023,2]
[365750012,1749876638836,-200.0,0.00023,2]
[365750013,1749876638847,-167.0,0.00023014,7]
[365750014,1749876638856,-190.26,0.00023032,10]
[365750015,1749876638865,-1847.6711044,0.00023038,8]
[365750016,1749876638875,-7000.0,0.00023042,3]
[365750017,1749876638884,-3000.0,0.00023096,3]
[365750018,1749876638894,-424.40141186,0.00023096,3]
[365750019,1749876638904,-160.0,0.00023096,3]
[365750020,1749876638913,-229.82479369,0.00023096,3]
[365750021,1749876638922,-160.0,0.00023096,3]
[365750022,1749876638932,-835.41710878,0.00023096,3]
[365750023,1749876638942,-719.7,0.00023103,2]
[365750024,1749876638952,-1737.0,0.00023108,2]
[365750025,1749876638961,-1847.6711044,0.00023141,8]
[365750026,1749876638971,-1146.75,0.000232,7]
[365750027,1749876638980,-719.7,0.00023203,7]
[365750028,1749876638989,-310.0,0.00023207,2]
[365750029,1749876638999,-420.0,0.00023207,2]
[365750030,1749876639008,-518.0,0.00023239,2]
[365750031,1749876639017,-1847.6711044,0.00023245,8]
[365750032,1749876639027,-460.0,0.00023261,4]
[365750033,1749876639038,-2694.91,0.00023261,4]
[365750034,1749876639048,-460.0,0.00023261,4]
[365750035,1749876639057,-460.0,0.00023261,4]
[365750036,1749876639066,-460.0,0.00023261,4]
[365750037,1749876639075,-490.1,0.00023261,4]
[365750038,1749876639084,-488.27,0.00023261,4]
[365750039,1749876639094,-504.92675436,0.00023261,4]
[365750040,1749876639103,-460.0,0.00023261,4]
[365750041,1749876639112,-593.95,0.00023262,4]
[365750042,1749876639121,-565.85,0.00023262,4]
[365750043,1749876639130,-518.0,0.00023265,2]
[365750044,1749876639139,-460.0,0.00023274,2]
[365750045,1749876639148,-1057.85692233,0.00023292,2]
[365750046,1749876639158,-151.0,0.000233,5]
[365750047,1749876639167,-719.7,0.00023303,7]
[365750048,1749876639181,-165.11664417,0.00023312,2]
[365750049,1749876639191,-1680.0,0.00023316,2]
[365750050,1749876639202,-518.0,0.00023321,2]
[365750051,1749876639211,-1319.476089,0.00023324,3]
[365750052,1749876639223,-1847.6711044,0.00023348,9]
[365750053,1749876639232,-9012.8554264,0.0002335,2]
[365750054,1749876639242,-160.0,0.00023369,2]
[365750055,1749876639253,-151.0,0.000234,6]
[365750056,1749876639264,-719.7,0.00023403,2]
[365750057,1749876639273,-1847.6711044,0.00023452,9]
[365750058,1749876639283,-151.0,0.000235,8]
[365750059,1749876639293,-719.7,0.00023503,2]
[365750060,1749876639303,-460.0,0.00023535,4]
[365750061,1749876639315,-2694.91,0.00023535,4]
[365750062,1749876639324,-460.0,0.00023535,4]
[365750063,1749876639335,-460.0,0.00023535,4]
[365750064,1749876639344,-460.0,0.00023535,4]
[365750065,1749876639354,-490.1,0.00023535,4]
[365750066,1749876639365,-488.27,0.00023535,4]
[365750067,1749876639374,-300.92538347,0.00023535,4]
[365750068,1749876639384,-593.95,0.00023536,4]
[365750069,1749876639394,-565.85,0.00023536,4]
[365750070,1749876639404,-460.0,0.00023548,2]
[365750071,1749876639413,-1847.6711044,0.00023555,9]
[365750072,1749876639423,-205.0,0.00023573,2]
[365750073,1749876639433,-152.552,0.0002358,2]
[365750074,1749876639443,-249.539,0.0002358,2]
[365750075,1749876639542,-250.0,0.0002358,2]
[365750076,1749876639566,-258.421,0.0002358,2]
[365750077,1749876639576,-215.773,0.0002358,2]
[365750078,1749876639586,-200.0,0.00023594,2]
[365750079,1749876639596,-49320.5345563,0.000236,2]
[365750080,1749876639607,-3000.0,0.000236,2]
[365750081,1749876639616,-151.0,0.000236,5]
[365750082,1749876639627,-151.0,0.000236,6]
[365750083,1749876639637,-719.7,0.00023603,7]
[365750084,1749876639647,-964.0,0.0002361,2]
[365750085,1749876639657,-2160.0,0.0002361,2]
[365750086,1749876639667,-653.0,0.0002361,2]
[365750087,1749876639677,-205.0,0.00023643,2]
[365750088,1749876639688,-1847.6711044,0.00023659,9]
[365750089,1749876639698,-200.0,0.00023663,2]
[365750090,1749876639708,-3000.0,0.000237,2]
[365750091,1749876639718,-2605.22832125,0.000237,2]
[365750092,1749876639728,-167.63761845,0.000237,2]
[365750093,1749876639738,-1057.85692233,0.000237,2]
[365750094,1749876639748,-719.7,0.00023703,3]
[365750095,1749876639758,-1746.0,0.00023705,3]
[365750096,1749876639767,-151.0,0.00023705,3]
[365750097,1749876639777,-1746.0,0.00023705,3]
[365750098,1749876639787,-151.0,0.00023705,3]
[365750099,1749876639796,-166.0,0.00023705,3]
[365750100,1749876639806,-1746.0,0.00023705,3]
[365750101,1749876639815,-151.0,0.00023705,3]
[365750102,1749876639825,-1746.0,0.00023705,3]
[365750103,1749876639834,-151.0,0.00023705,3]
[365750104,1749876639844,-1746.0,0.00023705,3]
[365750105,1749876639853,-151.0,0.00023705,3]
[365750106,1749876639863,-1746.0,0.00023705,3]
[365750107,1749876639873,-151.0,0.00023705,3]
[365750108,1749876639882,-1739.0,0.00023705,3]
[365750109,1749876639892,-151.0,0.00023705,3]
[365750110,1749876639902,-1746.0,0.00023705,3]
[365750111,1749876639911,-151.0,0.00023705,3]
[365750112,1749876639922,-151.0,0.00023705,3]
[365750113,1749876639933,-1746.0,0.00023705,3]
[365750114,1749876639944,-151.0,0.00023705,3]
[365750115,1749876639954,-1746.0,0.00023705,3]
[365750116,1749876639963,-151.0,0.00023705,3]
[365750117,1749876639972,-1742.0,0.00023705,3]
[365750118,1749876639983,-1746.0,0.00023705,3]
[365750119,1749876639992,-1746.0,0.00023705,3]
[365750120,1749876640002,-1746.0,0.00023705,3]
[365750121,1749876640012,-1746.0,0.00023705,3]
[365750122,1749876640021,-1746.0,0.00023705,3]
[365750123,1749876640031,-1740.0,0.00023705,3]
[365750124,1749876640040,-317.0,0.00023705,3]
[365750125,1749876640050,-317.0,0.00023705,3]
[365750126,1749876640060,-317.0,0.00023705,3]
[365750127,1749876640070,-317.0,0.00023705,3]
[365750129,1749876640079,-317.0,0.00023705,3]
[365750132,1749876640088,-317.0,0.00023705,3]
[365750134,1749876640098,-317.0,0.00023705,3]
[365750135,1749876640108,-317.0,0.00023705,3]
[365750136,1749876640117,-317.0,0.00023705,3]
[365750137,1749876640127,-317.0,0.00023705,3]
[365750139,1749876640136,-317.0,0.00023705,3]
[365750141,1749876640145,-317.0,0.00023705,3]
[365750142,1749876640155,-317.0,0.00023705,3]
[365750143,1749876640165,-317.0,0.00023705,3]
[365750144,1749876640176,-317.0,0.00023705,3]
[365750145,1749876640186,-317.0,0.00023705,3]
[365750146,1749876640195,-317.0,0.00023705,3]
[365750147,1749876640205,-168.0,0.00023709,2]
[365750148,1749876640214,-31428.86311538,0.0002371,2]
[365750149,1749876640224,-63906.30076843,0.0002371,2]
[365750150,1749876640233,-3000.0,0.0002371,2]
[365750151,1749876640243,-3000.0,0.0002372,2]
[365750152,1749876640253,-151.0,0.00023724,3]
[365750153,1749876640262,-1746.0,0.00023724,3]
[365750154,1749876640272,-151.0,0.00023724,3]
[365750155,1749876640281,-1746.0,0.00023724,3]
[365750157,1749876640291,-166.0,0.00023724,3]
[365750158,1749876640300,-151.0,0.00023724,3]
[365750160,1749876640309,-1746.0,0.00023724,3]
[365750161,1749876640318,-151.0,0.00023724,3]
[365750162,1749876640328,-1746.0,0.00023724,3]
[365750163,1749876640338,-171.0,0.00023724,3]
[365750164,1749876640348,-151.0,0.00023724,3]
[365750165,1749876640357,-1746.0,0.00023724,3]
[365750166,1749876640367,-243.6925415,0.00023724,3]
[365750167,1749876640377,-151.0,0.00023724,3]
[365750168,1749876640387,-812.96256108,0.00023724,3]
[365750169,1749876640396,-151.0,0.00023724,3]
[365750170,1749876640406,-317.0,0.00023724,3]
[365750171,1749876640415,-317.0,0.00023724,3]
[365750172,1749876640424,-317.0,0.00023724,3]
[365750173,1749876640434,-317.0,0.00023724,3]
[365750174,1749876640443,-317.0,0.00023724,3]
[365750175,1749876640453,-317.0,0.00023724,3]
[365750176,1749876640462,-317.0,0.00023724,3]
[365750177,1749876640472,-317.0,0.00023724,3]
[365750178,1749876640482,-317.0,0.00023724,3]
[365750179,1749876640491,-317.0,0.00023724,3]
[365750180,1749876640501,-288.57454196,0.00023724,3]
[365750181,1749876640511,-3000.0,0.0002373,2]
[365750182,1749876640520,-215.0738,0.00023731,2]
[365750183,1749876640531,-3000.0,0.0002374,2]
[365750184,1749876640542,-3000.0,0.0002375,2]
[365750185,1749876640552,-160.0,0.0002375,5]
[365750186,1749876640561,-3000.0,0.0002376,2]
[365750187,1749876640571,-1847.6711044,0.00023762,9]
[365750188,1749876640581,-3000.0,0.0002377,2]
[365750189,1749876640590,-500.0,0.00023773,2]
[365750190,1749876640600,-502.04104999,0.00023773,2]
[365750191,1749876640610,-501.06245016,0.00023773,2]
[365750192,1749876640620,-500.0,0.00023773,2]
[365750193,1749876640630,-500.0,0.00023773,2]
[365750194,1749876640640,-574.97211964,0.00023773,2]
[365750195,1749876640650,-500.0,0.00023773,2]
[365750196,1749876640659,-500.0,0.00023773,2]
[365750197,1749876640668,-500.0,0.00023773,2]
[365750198,1749876640678,-500.0,0.00023773,2]
[365750199,1749876640687,-500.0,0.00023773,2]
[365750200,1749876640697,-500.0,0.00023773,2]
[365750201,1749876640708,-500.0,0.00023773,2]
[365750202,1749876640717,-152.84253909,0.00023773,2]
[365750203,1749876640727,-500.0,0.00023773,2]
[365750204,1749876640736,-500.0,0.00023773,2]
[365750205,1749876640746,-500.0,0.00023773,2]
[365750206,1749876640755,-600.0,0.00023773,2]
[365750207,1749876640765,-500.0,0.00023773,2]
[365750208,1749876640773,-501.19077422,0.00023773,2]
[365750209,1749876640783,-500.0,0.00023773,2]
[365750210,1749876640792,-509.52386993,0.00023773,2]
[365750211,1749876640803,-500.79880931,0.00023773,2]
[365750212,1749876640812,-242.91572388,0.00023773,2]
[365750213,1749876640823,-500.0,0.00023773,2]
[365750214,1749876640833,-500.76973816,0.00023773,2]
[365750215,1749876640842,-501.54253158,0.00023773,2]
[365750216,1749876640852,-165.393352,0.00023773,7]
[365750217,1749876640861,-165.393352,0.00023773,7]
[365750218,1749876640870,-152.520026,0.00023773,7]
[365750219,1749876640880,-151.0,0.00023773,7]
[365750220,1749876640889,-151.0,0.00023773,7]
[365750221,1749876640898,-151.0,0.00023773,7]
[365750222,1749876640908,-15355.88142206,0.0002378,7]
[365750223,1749876640917,-213.28201367,0.0002378,7]
[365750224,1749876640926,-3000.0,0.0002378,2]
[365750225,1749876640936,-71015.44981471,0.0002378,5]
[365750226,1749876640945,-151.0,0.0002378,7]
[365750227,1749876640954,-152.269186,0.0002378,7]
[365750228,1749876640964,-151.0,0.0002378,7]
[365750229,1749876640973,-151.0,0.0002378,7]
[365750230,1749876640982,-151.0,0.0002378,7]
[365750231,1749876640991,-151.0,0.0002378,7]
[365750232,1749876641000,-151.0,0.0002378,7]
[365750233,1749876641009,-260.822629,0.0002378,7]
[365750234,1749876641020,-260.822629,0.0002378,7]
[365750235,1749876641030,-427.768058,0.0002378,7]
[365750236,1749876641040,-427.768058,0.0002378,7]
[365750237,1749876641049,-151.0,0.0002378,7]
[365750238,1749876641058,-151.0,0.0002378,7]
[365750239,1749876641068,-501.91821307,0.0002378,9]
[365750240,1749876641077,-500.0,0.0002378,9]
[365750241,1749876641086,-213.28201367,0.00023784,3]
[365750242,1749876641096,-165.393352,0.00023785,7]
[365750243,1749876641107,-165.393352,0.00023785,7]
[365750244,1749876641118,-151.0,0.00023785,7]
[365750245,1749876641129,-151.0,0.00023785,7]
[365750246,1749876641138,-151.0,0.00023785,7]
[365750247,1749876641147,-1746.0,0.00023787,3]
[365750248,1749876641156,-151.0,0.00023787,3]
[365750249,1749876641165,-1746.0,0.00023787,3]
[365750250,1749876641177,-1746.0,0.00023787,3]
[365750251,1749876641190,-151.0,0.00023787,3]
[365750252,1749876641201,-172.0,0.00023787,3]
[365750253,1749876641211,-1746.0,0.00023787,3]
[365750254,1749876641222,-171.23963482,0.00023787,3]
[365750255,1749876641231,-151.0,0.00023787,3]
[365750256,1749876641242,-1746.0,0.00023787,3]
[365750257,1749876641253,-1740.0,0.00023787,3]
[365750258,1749876641262,-151.0,0.00023787,3]
[365750259,1749876641271,-151.0,0.00023787,3]
[365750260,1749876641280,-151.0,0.00023787,3]
[365750261,1749876641290,-151.0,0.00023787,3]
[365750262,1749876641300,-151.0,0.00023787,3]
[365750263,1749876641309,-317.0,0.00023787,3]
[365750264,1749876641319,-317.0,0.00023787,3]
[365750265,1749876641328,-317.0,0.00023787,3]
[365750266,1749876641338,-317.0,0.00023787,3]
[365750267,1749876641347,-317.0,0.00023787,3]
[365750268,1749876641356,-317.0,0.00023787,3]
[365750269,1749876641366,-317.0,0.00023787,3]
[365750270,1749876641376,-317.0,0.00023787,3]
[365750271,1749876641385,-317.0,0.00023787,3]
[365750272,1749876641395,-317.0,0.00023787,3]
[365750273,1749876641404,-317.0,0.00023787,3]
[365750274,1749876641414,-317.0,0.00023787,3]
[365750275,1749876641423,-3000.0,0.0002379,2]
[365750276,1749876641432,-160.21686064,0.00023799,2]
[365750277,1749876641442,-204714.02907919,0.000238,3]
[365750278,1749876641451,-13269.51631507,0.000238,2]
[365750279,1749876641460,-160.0,0.000238,3]
[365750280,1749876641470,-160.0,0.000238,3]
[365750281,1749876641481,-151.0,0.000238,7]
[365750282,1749876641489,-151.0,0.000238,7]
[365750283,1749876641498,-151.0,0.000238,7]
[365750284,1749876641507,-151.0,0.000238,7]
[365750285,1749876641516,-153.379468,0.000238,7]
[365750286,1749876641525,-3000.0,0.000238,2]
[365750287,1749876641535,-2023.41,0.000238,2]
[365750288,1749876641544,-151.0,0.000238,7]
[365750289,1749876641554,-152.103042,0.000238,7]
[365750290,1749876641563,-165.534026,0.000238,7]
[365750291,1749876641573,-151.696922,0.000238,7]
[365750292,1749876641582,-266.687045,0.000238,7]